[Event "Titled Tuesday Blitz August 15 Early 2023"]
[White "Deac, Bogdan-Daniel"]
[Black "Durarbayli, Vasif"]
[WhiteFideId "1226380"]
[BlackFideId "13402935"]
[WhiteElo "3027"]
[BlackElo "2866"]
[Result "0-1"]
[Round "5"]
[TimeControl "180+1"]
[Date "2023.08.15"]
[WhiteClock "0:00:00"]
[BlackClock "0:00:03"]
[Board "7"]

1. e4 {[%clk 0:03:00]}  c5 {[%clk 0:02:59]} 2. Nf3 {[%clk 0:03:00]}  d6 {[%clk 0:02:59]} 3. Bb5+ {[%clk 0:02:56]}  Bd7 {[%clk 0:02:59]} 4. c4 {[%clk 0:02:56]}  e5 {[%clk 0:02:57]} 5. Nc3 {[%clk 0:02:53]}  Be7 {[%clk 0:02:53]} 6. a3 {[%clk 0:02:53]}  Nf6 {[%clk 0:02:46]} 7. d3 {[%clk 0:02:47]}  O-O {[%clk 0:02:46]} 8. Bg5 {[%clk 0:02:37]}  Ne8 {[%clk 0:02:43]} 9. Bxe7 {[%clk 0:02:31]}  Qxe7 {[%clk 0:02:44]} 10. b4 {[%clk 0:02:31]}  Bxb5 {[%clk 0:02:40]} 11. Nxb5 {[%clk 0:02:25]}  Nc6 {[%clk 0:02:39]} 12. Nc3 {[%clk 0:02:17]}  b6 {[%clk 0:02:37]} 13. b5 {[%clk 0:02:09]}  Nd8 {[%clk 0:02:26]} 14. a4 {[%clk 0:01:47]}  Nc7 {[%clk 0:02:24]} 15. a5 {[%clk 0:01:46]}  Nde6 {[%clk 0:02:24]} 16. O-O {[%clk 0:01:45]}  Qd7 {[%clk 0:02:12]} 17. Ra3 {[%clk 0:01:38]}  Rab8 {[%clk 0:02:06]} 18. axb6 {[%clk 0:01:09]}  axb6 {[%clk 0:02:06]} 19. Qd2 {[%clk 0:01:09]}  f5 {[%clk 0:02:01]} 20. Ng5 {[%clk 0:00:50]}  Nf4 {[%clk 0:01:33]} 21. g3 {[%clk 0:00:46]}  h6 {[%clk 0:01:29]} 22. Nf3 {[%clk 0:00:17]}  Nh3+ {[%clk 0:01:23]} 23. Kg2 {[%clk 0:00:17]}  Ne6 {[%clk 0:01:24]} 24. Nd5 {[%clk 0:00:13]}  f4 {[%clk 0:01:13]} 25. Qd1 {[%clk 0:00:08]}  Neg5 {[%clk 0:00:52]} 26. Nxg5 {[%clk 0:00:08]}  Nxg5 {[%clk 0:00:53]} 27. Qh5 {[%clk 0:00:07]}  f3+ {[%clk 0:00:50]} 28. Kh1 {[%clk 0:00:08]}  Kh7 {[%clk 0:00:50]} 29. g4 {[%clk 0:00:07]}  Ne6 {[%clk 0:00:37]} 30. Qh4 {[%clk 0:00:04]}  Nf4 {[%clk 0:00:34]} 31. g5 {[%clk 0:00:03]}  Nxd5 {[%clk 0:00:33]} 32. exd5 {[%clk 0:00:02]}  Rf4 {[%clk 0:00:34]} 33. Qg3 {[%clk 0:00:02]}  h5 {[%clk 0:00:31]} 34. g6+ {[%clk 0:00:02]}  Kh6 {[%clk 0:00:29]} 35. Rg1 {[%clk 0:00:03]}  Qf5 {[%clk 0:00:28]} 36. h4 {[%clk 0:00:02]}  Rg4 {[%clk 0:00:23]} 37. Qh2 {[%clk 0:00:02]}  Qxg6 {[%clk 0:00:20]} 38. Rxg4 {[%clk 0:00:02]}  Qxg4 {[%clk 0:00:21]} 39. Qg3 {[%clk 0:00:03]}  Qf5 {[%clk 0:00:16]} 40. Kh2 {[%clk 0:00:03]}  Rf8 {[%clk 0:00:16]} 41. Ra7 {[%clk 0:00:02]}  Rf7 {[%clk 0:00:04]} 42. Ra8 {[%clk 0:00:02]}  Kh7 {[%clk 0:00:04]} 43. Ra6 {[%clk 0:00:02]}  Qxd3 {[%clk 0:00:04]} 44. Rxb6 {[%clk 0:00:02]}  Rf4 {[%clk 0:00:04]} 45. Rxd6 {[%clk 0:00:02]}  Rg4 {[%clk 0:00:04]} 46. Qh3 {[%clk 0:00:00]}  Qe2 {[%clk 0:00:03]} 0-1


[Site "https://www.chess.com"]

[Event "Titled Tuesday Blitz August 15 Early 2023"]
[White "Materia, Marco"]
[Black "Korobov, Anton"]
[WhiteFideId "45150451"]
[BlackFideId "14105730"]
[WhiteElo "2784"]
[BlackElo "3019"]
[Result "0-1"]
[Round "5"]
[TimeControl "180+1"]
[Date "2023.08.15"]
[WhiteClock "0:00:10"]
[BlackClock "0:00:17"]
[Board "9"]

1. d4 {[%clk 0:03:00]}  Nf6 {[%clk 0:02:59]} 2. c4 {[%clk 0:03:01]}  e6 {[%clk 0:03:00]} 3. Nf3 {[%clk 0:03:01]}  d5 {[%clk 0:03:00]} 4. Nc3 {[%clk 0:03:01]}  c6 {[%clk 0:03:00]} 5. Bg5 {[%clk 0:03:00]}  h6 {[%clk 0:03:00]} 6. Bxf6 {[%clk 0:03:00]}  Qxf6 {[%clk 0:03:01]} 7. e3 {[%clk 0:03:01]}  Nd7 {[%clk 0:03:01]} 8. Bd3 {[%clk 0:03:01]}  g6 {[%clk 0:03:02]} 9. O-O {[%clk 0:02:59]}  dxc4 {[%clk 0:02:59]} 10. Bxc4 {[%clk 0:02:58]}  Bg7 {[%clk 0:03:00]} 11. e4 {[%clk 0:02:54]}  e5 {[%clk 0:02:59]} 12. d5 {[%clk 0:02:53]}  Nb6 {[%clk 0:02:59]} 13. Bb3 {[%clk 0:02:54]}  O-O {[%clk 0:02:59]} 14. Rc1 {[%clk 0:02:52]}  h5 {[%clk 0:02:51]} 15. Qe2 {[%clk 0:02:42]}  Bh6 {[%clk 0:02:41]} 16. Rcd1 {[%clk 0:02:28]}  Kg7 {[%clk 0:02:32]} 17. Rfe1 {[%clk 0:01:55]}  Bd7 {[%clk 0:02:28]} 18. a3 {[%clk 0:01:41]}  Rac8 {[%clk 0:02:19]} 19. Nd2 {[%clk 0:01:33]}  cxd5 {[%clk 0:02:02]} 20. exd5 {[%clk 0:01:31]}  Rfe8 {[%clk 0:01:59]} 21. Nde4 {[%clk 0:01:30]}  Qe7 {[%clk 0:02:00]} 22. d6 {[%clk 0:01:29]}  Qf8 {[%clk 0:02:00]} 23. Nd5 {[%clk 0:01:14]}  Nxd5 {[%clk 0:01:47]} 24. Bxd5 {[%clk 0:01:14]}  b6 {[%clk 0:01:46]} 25. Qa6 {[%clk 0:01:07]}  Red8 {[%clk 0:01:18]} 26. Qxa7 {[%clk 0:01:01]}  Bf5 {[%clk 0:01:19]} 27. Qxb6 {[%clk 0:00:56]}  Rb8 {[%clk 0:01:15]} 28. Qc7 {[%clk 0:00:53]}  Rxb2 {[%clk 0:01:12]} 29. Qc3 {[%clk 0:00:53]}  Rbb8 {[%clk 0:00:57]} 30. Qxe5+ {[%clk 0:00:49]}  f6 {[%clk 0:00:55]} 31. Qe7+ {[%clk 0:00:48]}  Kh8 {[%clk 0:00:44]} 32. Nxf6 {[%clk 0:00:34]}  Bg7 {[%clk 0:00:44]} 33. Ne4 {[%clk 0:00:33]}  Rd7 {[%clk 0:00:22]} 34. Qxf8+ {[%clk 0:00:32]}  Bxf8 {[%clk 0:00:23]} 35. Bc6 {[%clk 0:00:31]}  Rdd8 {[%clk 0:00:20]} 36. d7 {[%clk 0:00:28]}  Bxa3 {[%clk 0:00:20]} 37. Ng5 {[%clk 0:00:27]}  Kg7 {[%clk 0:00:20]} 38. Re8 {[%clk 0:00:26]}  Bc5 {[%clk 0:00:17]} 39. Rxd8 {[%clk 0:00:24]}  Rxd8 {[%clk 0:00:18]} 40. h3 {[%clk 0:00:23]}  Bb6 {[%clk 0:00:18]} 41. Nf3 {[%clk 0:00:18]}  Kf6 {[%clk 0:00:17]} 42. Nh4 {[%clk 0:00:19]}  Be6 {[%clk 0:00:16]} 43. Ba4 {[%clk 0:00:16]}  g5 {[%clk 0:00:17]} 44. Nf3 {[%clk 0:00:17]}  g4 {[%clk 0:00:17]} 45. hxg4 {[%clk 0:00:17]}  hxg4 {[%clk 0:00:18]} 46. Nh2 {[%clk 0:00:17]}  g3 {[%clk 0:00:18]} 47. Nf3 {[%clk 0:00:10]}  Bxf2+ {[%clk 0:00:17]} 0-1


[Site "https://www.chess.com"]

[Event "Titled Tuesday Blitz August 15 Early 2023"]
[White "Bluebaum, Matthias"]
[Black "Gubajdullin, Alexei"]
[WhiteFideId "24651516"]
[BlackFideId "4141202"]
[WhiteElo "3015"]
[BlackElo "2711"]
[Result "1-0"]
[Round "5"]
[TimeControl "180+1"]
[Date "2023.08.15"]
[WhiteClock "0:02:24"]
[BlackClock "0:00:11"]
[Board "11"]

1. d4 {[%clk 0:03:00]}  g6 {[%clk 0:02:57]} 2. c4 {[%clk 0:03:01]}  Bg7 {[%clk 0:02:56]} 3. e4 {[%clk 0:03:01]}  d6 {[%clk 0:02:56]} 4. Nc3 {[%clk 0:03:02]}  Nf6 {[%clk 0:02:56]} 5. Nf3 {[%clk 0:03:02]}  O-O {[%clk 0:02:56]} 6. Be2 {[%clk 0:03:03]}  Na6 {[%clk 0:02:56]} 7. O-O {[%clk 0:03:03]}  e5 {[%clk 0:02:56]} 8. Be3 {[%clk 0:03:03]}  c6 {[%clk 0:02:56]} 9. d5 {[%clk 0:03:03]}  Ng4 {[%clk 0:02:54]} 10. Bg5 {[%clk 0:03:03]}  f6 {[%clk 0:02:54]} 11. Bh4 {[%clk 0:03:04]}  c5 {[%clk 0:02:55]} 12. Ne1 {[%clk 0:03:05]}  h5 {[%clk 0:02:54]} 13. h3 {[%clk 0:03:04]}  Nh6 {[%clk 0:02:54]} 14. a3 {[%clk 0:03:04]}  Nf7 {[%clk 0:02:50]} 15. Nd3 {[%clk 0:03:04]}  Bh6 {[%clk 0:02:49]} 16. Bxh5 {[%clk 0:03:04]}  gxh5 {[%clk 0:02:46]} 17. f4 {[%clk 0:03:05]}  exf4 {[%clk 0:02:25]} 18. Nxf4 {[%clk 0:03:02]}  Bg5 {[%clk 0:02:08]} 19. Qxh5 {[%clk 0:02:50]}  Ne5 {[%clk 0:02:08]} 20. Bxg5 {[%clk 0:02:34]}  fxg5 {[%clk 0:02:07]} 21. Ng6 {[%clk 0:02:34]}  Nxg6 {[%clk 0:01:32]} 22. Qxg6+ {[%clk 0:02:35]}  Kh8 {[%clk 0:01:32]} 23. Qh6+ {[%clk 0:02:33]}  Kg8 {[%clk 0:01:31]} 24. Qg6+ {[%clk 0:02:34]}  Kh8 {[%clk 0:01:31]} 25. Rxf8+ {[%clk 0:02:29]}  Qxf8 {[%clk 0:01:31]} 26. Rf1 {[%clk 0:02:29]}  Qg7 {[%clk 0:00:54]} 27. Qe8+ {[%clk 0:02:28]}  Qg8 {[%clk 0:00:46]} 28. Rf8 {[%clk 0:02:28]}  Qxf8 {[%clk 0:00:43]} 29. Qxf8+ {[%clk 0:02:29]}  Kh7 {[%clk 0:00:43]} 30. Qxd6 {[%clk 0:02:29]}  b6 {[%clk 0:00:35]} 31. Qe7+ {[%clk 0:02:28]}  Kg6 {[%clk 0:00:34]} 32. Nb5 {[%clk 0:02:24]}  g4 {[%clk 0:00:33]} 33. h4 {[%clk 0:02:23]}  g3 {[%clk 0:00:32]} 34. Nd6 {[%clk 0:02:23]}  b5 {[%clk 0:00:11]} 35. cxb5 {[%clk 0:02:24]} 1-0


[Site "https://www.chess.com"]

[Event "Titled Tuesday Blitz August 15 Early 2023"]
[White "Tabatabaei, M. Amin"]
[Black "Kashefi, Amir Hosein"]
[WhiteFideId "12521213"]
[BlackFideId "12557935"]
[WhiteElo "3008"]
[BlackElo "2522"]
[Result "1-0"]
[Round "5"]
[TimeControl "180+1"]
[Date "2023.08.15"]
[WhiteClock "0:00:40"]
[BlackClock "0:00:04"]
[Board "12"]

1. d4 {[%clk 0:03:00]}  d5 {[%clk 0:02:59]} 2. Nf3 {[%clk 0:03:01]}  Nf6 {[%clk 0:02:57]} 3. Bf4 {[%clk 0:03:01]}  c6 {[%clk 0:02:46]} 4. e3 {[%clk 0:02:57]}  Bg4 {[%clk 0:02:38]} 5. c4 {[%clk 0:02:55]}  Bxf3 {[%clk 0:02:36]} 6. Qxf3 {[%clk 0:02:54]}  e6 {[%clk 0:02:36]} 7. Nc3 {[%clk 0:02:53]}  Nbd7 {[%clk 0:02:36]} 8. a3 {[%clk 0:02:45]}  Be7 {[%clk 0:02:34]} 9. Bd3 {[%clk 0:02:39]}  O-O {[%clk 0:02:34]} 10. O-O {[%clk 0:02:39]}  Re8 {[%clk 0:02:32]} 11. h3 {[%clk 0:02:38]}  Nf8 {[%clk 0:02:30]} 12. b4 {[%clk 0:02:28]}  Ng6 {[%clk 0:02:29]} 13. Bg3 {[%clk 0:02:26]}  Bd6 {[%clk 0:02:27]} 14. Rfd1 {[%clk 0:02:23]}  Qc7 {[%clk 0:02:14]} 15. Bxd6 {[%clk 0:02:18]}  Qxd6 {[%clk 0:02:15]} 16. Rac1 {[%clk 0:02:16]}  Rad8 {[%clk 0:02:14]} 17. Qe2 {[%clk 0:02:05]}  a5 {[%clk 0:01:58]} 18. Qb2 {[%clk 0:02:03]}  axb4 {[%clk 0:01:58]} 19. axb4 {[%clk 0:02:03]}  Ra8 {[%clk 0:01:44]} 20. c5 {[%clk 0:01:54]}  Qc7 {[%clk 0:01:42]} 21. b5 {[%clk 0:01:55]}  e5 {[%clk 0:01:41]} 22. b6 {[%clk 0:01:52]}  Qe7 {[%clk 0:01:40]} 23. Ra1 {[%clk 0:01:41]}  Rab8 {[%clk 0:01:24]} 24. Ra7 {[%clk 0:01:37]}  exd4 {[%clk 0:01:19]} 25. exd4 {[%clk 0:01:38]}  Nf4 {[%clk 0:01:19]} 26. Qd2 {[%clk 0:01:27]}  Nxd3 {[%clk 0:01:00]} 27. Qxd3 {[%clk 0:01:27]}  Qd7 {[%clk 0:00:58]} 28. Ne2 {[%clk 0:00:54]}  g6 {[%clk 0:00:52]} 29. Nc1 {[%clk 0:00:53]}  Re7 {[%clk 0:00:40]} 30. Qf3 {[%clk 0:00:49]}  Ne4 {[%clk 0:00:25]} 31. Nb3 {[%clk 0:00:47]}  Rbe8 {[%clk 0:00:21]} 32. Na5 {[%clk 0:00:48]}  Qc8 {[%clk 0:00:21]} 33. Qf4 {[%clk 0:00:48]}  Nc3 {[%clk 0:00:19]} 34. Rd2 {[%clk 0:00:48]}  Re2 {[%clk 0:00:10]} 35. Rxb7 {[%clk 0:00:40]}  Re1+ {[%clk 0:00:10]} 36. Kh2 {[%clk 0:00:40]}  Ra1 {[%clk 0:00:04]} 37. Qxf7+ {[%clk 0:00:40]} 1-0


[Site "https://www.chess.com"]

[Event "Titled Tuesday Blitz August 15 Early 2023"]
[White "Naroditsky, Daniel"]
[Black "Kamsky, Gata"]
[WhiteFideId "2026961"]
[BlackFideId "2000024"]
[WhiteElo "3189"]
[BlackElo "2925"]
[Result "1/2-1/2"]
[Round "5"]
[TimeControl "180+1"]
[Date "2023.08.15"]
[WhiteClock "0:00:38"]
[BlackClock "0:01:07"]
[Board "13"]

1. d4 {[%clk 0:02:31]}  d5 {[%clk 0:02:57]} 2. Nc3 {[%clk 0:02:31]}  Nf6 {[%clk 0:02:55]} 3. Bf4 {[%clk 0:02:27]}  c6 {[%clk 0:02:41]} 4. e3 {[%clk 0:02:26]}  g6 {[%clk 0:02:38]} 5. h4 {[%clk 0:02:26]}  h5 {[%clk 0:02:37]} 6. Nf3 {[%clk 0:02:27]}  Bg4 {[%clk 0:02:36]} 7. Qd2 {[%clk 0:02:27]}  Bxf3 {[%clk 0:02:35]} 8. gxf3 {[%clk 0:02:28]}  e6 {[%clk 0:02:34]} 9. e4 {[%clk 0:02:25]}  a6 {[%clk 0:02:26]} 10. Bd3 {[%clk 0:02:14]}  Nbd7 {[%clk 0:02:25]} 11. Rg1 {[%clk 0:02:05]}  Qb6 {[%clk 0:01:50]} 12. O-O-O {[%clk 0:01:18]}  O-O-O {[%clk 0:01:45]} 13. Ne2 {[%clk 0:01:12]}  Be7 {[%clk 0:01:28]} 14. Bg3 {[%clk 0:01:10]}  Bf8 {[%clk 0:01:18]} 15. Kb1 {[%clk 0:01:09]}  Bh6 {[%clk 0:01:16]} 16. Qc3 {[%clk 0:01:07]}  Bf8 {[%clk 0:01:12]} 17. a3 {[%clk 0:01:00]}  Ne8 {[%clk 0:01:11]} 18. Nf4 {[%clk 0:00:46]}  Nc7 {[%clk 0:01:09]} 19. Ne2 {[%clk 0:00:41]}  Ne8 {[%clk 0:01:07]} 20. Nf4 {[%clk 0:00:38]}  Nc7 {[%clk 0:01:07]} 21. Ne2 {[%clk 0:00:38]}  Ne8 {[%clk 0:01:07]} 1/2-1/2


[Site "https://www.chess.com"]

[Event "Titled Tuesday Blitz August 15 Early 2023"]
[White "Chigaev, Maksim"]
[Black "Hoang, Thi Bao Tram"]
[WhiteFideId "4108116"]
[BlackFideId "12401102"]
[WhiteElo "2946"]
[BlackElo "2677"]
[Result "1-0"]
[Round "5"]
[TimeControl "180+1"]
[Date "2023.08.15"]
[WhiteClock "0:00:53"]
[BlackClock "0:00:17"]
[Board "15"]

1. e4 {[%clk 0:03:00]}  c6 {[%clk 0:02:59]} 2. Nf3 {[%clk 0:02:59]}  d5 {[%clk 0:02:59]} 3. d3 {[%clk 0:03:00]}  Bg4 {[%clk 0:02:54]} 4. h3 {[%clk 0:03:00]}  Bxf3 {[%clk 0:02:53]} 5. Qxf3 {[%clk 0:02:59]}  e6 {[%clk 0:02:52]} 6. g3 {[%clk 0:02:59]}  Nf6 {[%clk 0:02:47]} 7. Bg2 {[%clk 0:02:57]}  Nbd7 {[%clk 0:02:35]} 8. O-O {[%clk 0:02:54]}  Bd6 {[%clk 0:02:25]} 9. Nd2 {[%clk 0:02:52]}  O-O {[%clk 0:02:22]} 10. Qe2 {[%clk 0:02:52]}  e5 {[%clk 0:01:58]} 11. Nf3 {[%clk 0:02:37]}  Re8 {[%clk 0:01:57]} 12. Nh4 {[%clk 0:02:32]}  Bc5 {[%clk 0:01:49]} 13. Nf5 {[%clk 0:02:29]}  Nf8 {[%clk 0:01:46]} 14. Kh2 {[%clk 0:02:29]}  Ne6 {[%clk 0:01:13]} 15. c3 {[%clk 0:02:26]}  Qc7 {[%clk 0:01:06]} 16. Bd2 {[%clk 0:02:19]}  Rad8 {[%clk 0:01:05]} 17. Rad1 {[%clk 0:02:19]}  Qb6 {[%clk 0:01:01]} 18. Bc1 {[%clk 0:02:15]}  Qa6 {[%clk 0:00:59]} 19. b4 {[%clk 0:02:14]}  Bb6 {[%clk 0:00:57]} 20. Qc2 {[%clk 0:02:15]}  dxe4 {[%clk 0:00:52]} 21. dxe4 {[%clk 0:02:14]}  Bc7 {[%clk 0:00:44]} 22. Rfe1 {[%clk 0:02:09]}  g6 {[%clk 0:00:37]} 23. Nh4 {[%clk 0:01:41]}  Kg7 {[%clk 0:00:31]} 24. a4 {[%clk 0:01:40]}  b5 {[%clk 0:00:29]} 25. a5 {[%clk 0:01:40]}  c5 {[%clk 0:00:27]} 26. Be3 {[%clk 0:01:27]}  Qc6 {[%clk 0:00:27]} 27. Nf5+ {[%clk 0:01:08]}  Kg8 {[%clk 0:00:20]} 28. Qb1 {[%clk 0:01:09]}  a6 {[%clk 0:00:19]} 29. Rxd8 {[%clk 0:00:53]}  Rxd8 {[%clk 0:00:17]} 30. Ne7+ {[%clk 0:00:53]} 1-0


[Site "https://www.chess.com"]

[Event "Titled Tuesday Blitz August 15 Early 2023"]
[White "Stribuk, Artiom"]
[Black "Nihal Sarin"]
[WhiteFideId "13515659"]
[BlackFideId "25092340"]
[WhiteElo "2746"]
[BlackElo "3136"]
[Result "0-1"]
[Round "5"]
[TimeControl "180+1"]
[Date "2023.08.15"]
[WhiteClock "0:00:01"]
[BlackClock "0:00:24"]
[Board "16"]

1. d4 {[%clk 0:03:00]}  Nf6 {[%clk 0:03:00]} 2. c4 {[%clk 0:03:01]}  a6 {[%clk 0:03:00]} 3. Nc3 {[%clk 0:02:55]}  c5 {[%clk 0:02:43]} 4. dxc5 {[%clk 0:02:23]}  e6 {[%clk 0:02:39]} 5. Nf3 {[%clk 0:02:19]}  Bxc5 {[%clk 0:02:39]} 6. Bg5 {[%clk 0:02:01]}  O-O {[%clk 0:02:38]} 7. e3 {[%clk 0:01:58]}  h6 {[%clk 0:02:36]} 8. Bh4 {[%clk 0:01:56]}  b6 {[%clk 0:02:36]} 9. Be2 {[%clk 0:01:55]}  Bb7 {[%clk 0:02:36]} 10. O-O {[%clk 0:01:43]}  Be7 {[%clk 0:02:36]} 11. Qd2 {[%clk 0:01:38]}  d6 {[%clk 0:02:35]} 12. Rfd1 {[%clk 0:01:39]}  Nbd7 {[%clk 0:02:36]} 13. Bg3 {[%clk 0:01:35]}  Ne8 {[%clk 0:02:32]} 14. Rac1 {[%clk 0:01:29]}  Rc8 {[%clk 0:02:30]} 15. Nd4 {[%clk 0:01:17]}  Ndf6 {[%clk 0:02:29]} 16. h3 {[%clk 0:01:06]}  Nd7 {[%clk 0:02:20]} 17. b3 {[%clk 0:00:53]}  Nef6 {[%clk 0:02:20]} 18. Qb2 {[%clk 0:00:42]}  Nc5 {[%clk 0:02:18]} 19. Bh4 {[%clk 0:00:33]}  Nfe4 {[%clk 0:02:14]} 20. Bxe7 {[%clk 0:00:33]}  Qxe7 {[%clk 0:02:14]} 21. Bf3 {[%clk 0:00:32]}  Rfd8 {[%clk 0:02:12]} 22. b4 {[%clk 0:00:29]}  Nxc3 {[%clk 0:02:10]} 23. Qxc3 {[%clk 0:00:30]}  Bxf3 {[%clk 0:02:11]} 24. Nxf3 {[%clk 0:00:29]}  Ne4 {[%clk 0:02:11]} 25. Qd4 {[%clk 0:00:27]}  Qb7 {[%clk 0:02:12]} 26. a3 {[%clk 0:00:24]}  Nf6 {[%clk 0:02:11]} 27. Qf4 {[%clk 0:00:22]}  Qc6 {[%clk 0:02:07]} 28. Nd4 {[%clk 0:00:18]}  Qa4 {[%clk 0:02:07]} 29. Nf3 {[%clk 0:00:12]}  Qxa3 {[%clk 0:02:05]} 30. Rb1 {[%clk 0:00:12]}  e5 {[%clk 0:02:01]} 31. Qh4 {[%clk 0:00:12]}  Qc3 {[%clk 0:01:57]} 32. Rdc1 {[%clk 0:00:11]}  Qd3 {[%clk 0:01:58]} 33. c5 {[%clk 0:00:11]}  bxc5 {[%clk 0:01:58]} 34. bxc5 {[%clk 0:00:11]}  Rxc5 {[%clk 0:01:59]} 35. Rd1 {[%clk 0:00:11]}  Qe4 {[%clk 0:01:57]} 36. Rb6 {[%clk 0:00:07]}  Qxh4 {[%clk 0:01:53]} 37. Nxh4 {[%clk 0:00:08]}  a5 {[%clk 0:01:48]} 38. Nf5 {[%clk 0:00:08]}  d5 {[%clk 0:01:37]} 39. Nxh6+ {[%clk 0:00:08]}  Kf8 {[%clk 0:01:09]} 40. Nf5 {[%clk 0:00:09]}  Ra8 {[%clk 0:01:05]} 41. Nd6 {[%clk 0:00:05]}  Rc7 {[%clk 0:00:57]} 42. Nb5 {[%clk 0:00:05]}  Rd7 {[%clk 0:00:58]} 43. g4 {[%clk 0:00:03]}  a4 {[%clk 0:00:57]} 44. Rd3 {[%clk 0:00:04]}  Ne4 {[%clk 0:00:55]} 45. f3 {[%clk 0:00:04]}  Nc5 {[%clk 0:00:54]} 46. Ra3 {[%clk 0:00:05]}  Rb7 {[%clk 0:00:52]} 47. Rxb7 {[%clk 0:00:05]}  Nxb7 {[%clk 0:00:53]} 48. Kf2 {[%clk 0:00:06]}  Ra5 {[%clk 0:00:52]} 49. Nc3 {[%clk 0:00:05]}  d4 {[%clk 0:00:52]} 50. exd4 {[%clk 0:00:06]}  exd4 {[%clk 0:00:53]} 51. Ne4 {[%clk 0:00:06]}  Nd8 {[%clk 0:00:49]} 52. Ke2 {[%clk 0:00:07]}  Ne6 {[%clk 0:00:49]} 53. Kd3 {[%clk 0:00:07]}  Nc7 {[%clk 0:00:50]} 54. Kc4 {[%clk 0:00:08]}  Ke7 {[%clk 0:00:48]} 55. Kb4 {[%clk 0:00:08]}  Ra8 {[%clk 0:00:48]} 56. Rxa4 {[%clk 0:00:08]}  Nd5+ {[%clk 0:00:43]} 57. Kb3 {[%clk 0:00:09]}  Rxa4 {[%clk 0:00:27]} 58. Kxa4 {[%clk 0:00:10]}  Ke6 {[%clk 0:00:28]} 59. Kb3 {[%clk 0:00:10]}  Ke5 {[%clk 0:00:28]} 60. Kc4 {[%clk 0:00:10]}  Nf4 {[%clk 0:00:20]} 61. h4 {[%clk 0:00:10]}  Ng2 {[%clk 0:00:20]} 62. h5 {[%clk 0:00:09]}  Nh4 {[%clk 0:00:21]} 63. Nd2 {[%clk 0:00:09]}  f6 {[%clk 0:00:20]} 64. Kc5 {[%clk 0:00:07]}  Kf4 {[%clk 0:00:20]} 65. Kxd4 {[%clk 0:00:07]}  Nxf3+ {[%clk 0:00:20]} 66. Nxf3 {[%clk 0:00:05]}  Kxf3 {[%clk 0:00:21]} 67. g5 {[%clk 0:00:04]}  fxg5 {[%clk 0:00:22]} 68. Ke5 {[%clk 0:00:05]}  Kg4 {[%clk 0:00:21]} 69. Ke4 {[%clk 0:00:04]}  Kxh5 {[%clk 0:00:22]} 70. Kf3 {[%clk 0:00:04]}  Kh4 {[%clk 0:00:22]} 71. Kf2 {[%clk 0:00:04]}  Kh3 {[%clk 0:00:23]} 72. Kg1 {[%clk 0:00:02]}  Kg3 {[%clk 0:00:23]} 73. Kh1 {[%clk 0:00:02]}  Kf2 {[%clk 0:00:23]} 74. Kh2 {[%clk 0:00:01]}  g4 {[%clk 0:00:24]} 0-1


[Site "https://www.chess.com"]

[Event "Titled Tuesday Blitz August 15 Early 2023"]
[White "Drygalov, Sergey"]
[Black "Bryakin, Mikhail"]
[WhiteFideId "24171743"]
[BlackFideId "4165314"]
[WhiteElo "2995"]
[BlackElo "2722"]
[Result "1-0"]
[Round "5"]
[TimeControl "180+1"]
[Date "2023.08.15"]
[WhiteClock "0:00:49"]
[BlackClock "0:00:00"]
[Board "22"]

1. d4 {[%clk 0:03:00]}  e6 {[%clk 0:02:54]} 2. c4 {[%clk 0:03:01]}  f5 {[%clk 0:02:49]} 3. Nf3 {[%clk 0:03:00]}  Nf6 {[%clk 0:02:50]} 4. g3 {[%clk 0:03:01]}  Be7 {[%clk 0:02:51]} 5. Bg2 {[%clk 0:03:02]}  O-O {[%clk 0:02:51]} 6. O-O {[%clk 0:03:02]}  d6 {[%clk 0:02:50]} 7. Nc3 {[%clk 0:02:59]}  Qe8 {[%clk 0:02:50]} 8. Qc2 {[%clk 0:02:54]}  Qg6 {[%clk 0:02:49]} 9. Re1 {[%clk 0:02:51]}  Ne4 {[%clk 0:02:28]} 10. Be3 {[%clk 0:02:46]}  Nxc3 {[%clk 0:02:06]} 11. Qxc3 {[%clk 0:02:47]}  Bf6 {[%clk 0:01:57]} 12. c5 {[%clk 0:02:39]}  Nc6 {[%clk 0:01:49]} 13. Qa3 {[%clk 0:02:35]}  Rd8 {[%clk 0:01:37]} 14. Rad1 {[%clk 0:02:32]}  d5 {[%clk 0:01:24]} 15. Bf4 {[%clk 0:02:31]}  Qf7 {[%clk 0:01:19]} 16. b4 {[%clk 0:02:32]}  b5 {[%clk 0:01:13]} 17. cxb6 {[%clk 0:02:14]}  cxb6 {[%clk 0:01:14]} 18. e3 {[%clk 0:02:10]}  a5 {[%clk 0:01:10]} 19. b5 {[%clk 0:02:08]}  Na7 {[%clk 0:00:52]} 20. Qb2 {[%clk 0:02:08]}  Bd7 {[%clk 0:00:44]} 21. a4 {[%clk 0:02:08]}  Be8 {[%clk 0:00:45]} 22. Rc1 {[%clk 0:02:05]}  Rac8 {[%clk 0:00:45]} 23. h4 {[%clk 0:02:04]}  Rxc1 {[%clk 0:00:44]} 24. Rxc1 {[%clk 0:02:04]}  Rc8 {[%clk 0:00:44]} 25. Rxc8 {[%clk 0:01:59]}  Nxc8 {[%clk 0:00:45]} 26. Qc2 {[%clk 0:01:59]}  Qb7 {[%clk 0:00:46]} 27. Ne5 {[%clk 0:01:51]}  Nd6 {[%clk 0:00:39]} 28. Ng4 {[%clk 0:01:39]}  Be7 {[%clk 0:00:27]} 29. Ne5 {[%clk 0:01:39]}  Qc8 {[%clk 0:00:25]} 30. Nc6 {[%clk 0:01:34]}  Kf8 {[%clk 0:00:18]} 31. Bf1 {[%clk 0:01:22]}  Ne4 {[%clk 0:00:16]} 32. f3 {[%clk 0:01:18]}  Nf6 {[%clk 0:00:15]} 33. Be5 {[%clk 0:01:17]}  Nd7 {[%clk 0:00:14]} 34. Bf4 {[%clk 0:01:17]}  Nf6 {[%clk 0:00:14]} 35. Bd3 {[%clk 0:01:14]}  Bd7 {[%clk 0:00:10]} 36. Nxe7 {[%clk 0:01:11]}  Kxe7 {[%clk 0:00:06]} 37. Qxc8 {[%clk 0:01:02]}  Bxc8 {[%clk 0:00:07]} 38. Bc7 {[%clk 0:01:02]}  Nd7 {[%clk 0:00:07]} 39. g4 {[%clk 0:01:02]}  g6 {[%clk 0:00:07]} 40. Kf2 {[%clk 0:01:03]}  Kf6 {[%clk 0:00:08]} 41. Kg3 {[%clk 0:01:02]}  h6 {[%clk 0:00:07]} 42. e4 {[%clk 0:01:01]}  Bb7 {[%clk 0:00:06]} 43. exf5 {[%clk 0:01:01]}  exf5 {[%clk 0:00:05]} 44. gxf5 {[%clk 0:00:58]}  g5 {[%clk 0:00:04]} 45. hxg5+ {[%clk 0:00:58]}  hxg5 {[%clk 0:00:04]} 46. f4 {[%clk 0:00:59]}  gxf4+ {[%clk 0:00:02]} 47. Kxf4 {[%clk 0:01:00]}  Bc8 {[%clk 0:00:01]} 48. Be2 {[%clk 0:01:00]}  Bb7 {[%clk 0:00:01]} 49. Bh5 {[%clk 0:01:00]}  Bc8 {[%clk 0:00:01]} 50. Be8 {[%clk 0:00:59]}  Ke7 {[%clk 0:00:01]} 51. Bg6 {[%clk 0:00:55]}  Kf6 {[%clk 0:00:01]} 52. Bh7 {[%clk 0:00:55]}  Kg7 {[%clk 0:00:01]} 53. Bg6 {[%clk 0:00:53]}  Kf6 {[%clk 0:00:02]} 54. Be5+ {[%clk 0:00:53]}  Ke7 {[%clk 0:00:02]} 55. Kg5 {[%clk 0:00:53]}  Kf8 {[%clk 0:00:01]} 56. Bd6+ {[%clk 0:00:52]}  Kg7 {[%clk 0:00:01]} 57. f6+ {[%clk 0:00:52]}  Kg8 {[%clk 0:00:01]} 58. Be7 {[%clk 0:00:50]}  Nf8 {[%clk 0:00:00]} 59. f7+ {[%clk 0:00:49]} 1-0


[Site "https://www.chess.com"]